[Event "*** Titled Tuesday Blitz"]
[Site "Chess.com"]
[Date "2019.02.05"]
[Round "5"]
[White "Kumi29"]
[Black "AndrBaryshpolets"]
[Result "0-1"]
[WhiteElo "2408"]
[BlackElo "2614"]
[TimeControl "180+2"]
[EndTime "14:06:48 PST"]
[Termination "AndrBaryshpolets won by checkmate"]

1. d4 {[%clk 0:03:01.9]} 1... d5 {[%clk 0:03:00]} 2. Nc3 {[%clk 0:03:02.9]} 2...
Nf6 {[%clk 0:03:00.7]} 3. Bf4 {[%clk 0:03:03.7]} 3... a6 {[%clk 0:03:01.7]} 4.
e3 {[%clk 0:02:59.1]} 4... e6 {[%clk 0:02:59.9]} 5. g4 {[%clk 0:03:00.1]} 5...
b5 {[%clk 0:02:56.8]} 6. g5 {[%clk 0:02:57.8]} 6... Nfd7 {[%clk 0:02:57.1]} 7.
Nf3 {[%clk 0:02:48.7]} 7... Bb7 {[%clk 0:02:57.1]} 8. h4 {[%clk 0:02:48.2]} 8...
c5 {[%clk 0:02:54.5]} 9. h5 {[%clk 0:02:41.2]} 9... Nc6 {[%clk 0:02:53.2]} 10.
Bh3 {[%clk 0:02:39.6]} 10... g6 {[%clk 0:02:19.8]} 11. hxg6 {[%clk 0:02:36]}
11... hxg6 {[%clk 0:02:21.7]} 12. Nxd5 {[%clk 0:02:32.8]} 12... Rxh3 {[%clk
0:02:12.1]} 13. Rxh3 {[%clk 0:02:15.3]} 13... exd5 {[%clk 0:02:10.6]} 14. Rh8
{[%clk 0:02:12.8]} 14... Qe7 {[%clk 0:01:58.9]} 15. a4 {[%clk 0:02:08.2]} 15...
b4 {[%clk 0:01:50.5]} 16. dxc5 {[%clk 0:01:37.5]} 16... Qxc5 {[%clk 0:01:15.6]}
17. Nd4 {[%clk 0:01:36.8]} 17... O-O-O {[%clk 0:01:11]} 18. Nxc6 {[%clk
0:01:23.2]} 18... Qxc6 {[%clk 0:01:05.9]} 19. Qe2 {[%clk 0:00:51.2]} 19... b3
{[%clk 0:00:53.4]} 20. c3 {[%clk 0:00:51.9]} 20... Nb6 {[%clk 0:00:39.3]} 21.
Qg4+ {[%clk 0:00:44.5]} 21... Qd7 {[%clk 0:00:38.1]} 22. Qxd7+ {[%clk
0:00:38.6]} 22... Kxd7 {[%clk 0:00:40]} 23. Rd1 {[%clk 0:00:36.8]} 23... Nxa4
{[%clk 0:00:34.9]} 24. Rd2 {[%clk 0:00:38.2]} 24... Nb6 {[%clk 0:00:31.5]} 25.
Be5 {[%clk 0:00:38.5]} 25... Nc4 {[%clk 0:00:24.2]} 26. Bf6 {[%clk 0:00:39.9]}
26... Be7 {[%clk 0:00:21.7]} 27. Rxd8+ {[%clk 0:00:37.3]} 27... Kxd8 {[%clk
0:00:23.6]} 28. Re2 {[%clk 0:00:27.6]} 28... Bxf6 {[%clk 0:00:21.4]} 29. gxf6
{[%clk 0:00:29.5]} 29... Kd7 {[%clk 0:00:22.7]} 30. f3 {[%clk 0:00:26.9]} 30...
Ke6 {[%clk 0:00:23.6]} 31. e4 {[%clk 0:00:28.4]} 31... dxe4 {[%clk 0:00:24.5]}
32. fxe4 {[%clk 0:00:29.8]} 32... Kxf6 {[%clk 0:00:25.2]} 33. Rf2+ {[%clk
0:00:30.7]} 33... Ke6 {[%clk 0:00:26.4]} 34. Re2 {[%clk 0:00:28.8]} 34... Ke5
{[%clk 0:00:27.1]} 35. Kd1 {[%clk 0:00:28.7]} 35... Bxe4 {[%clk 0:00:27.4]} 36.
Kc1 {[%clk 0:00:30.3]} 36... g5 {[%clk 0:00:25.5]} 37. Rf2 {[%clk 0:00:30.9]}
37... f5 {[%clk 0:00:26.3]} 38. Rh2 {[%clk 0:00:26]} 38... g4 {[%clk 0:00:26]}
39. Rh6 {[%clk 0:00:26.8]} 39... g3 {[%clk 0:00:25.4]} 40. Rxa6 {[%clk
0:00:26.9]} 40... f4 {[%clk 0:00:25.4]} 41. Ra7 {[%clk 0:00:15.8]} 41... f3
{[%clk 0:00:26]} 42. Re7+ {[%clk 0:00:16.8]} 42... Kf4 {[%clk 0:00:26.6]} 43.
Rd7 {[%clk 0:00:15.7]} 43... f2 {[%clk 0:00:24.6]} 44. Rd1 {[%clk 0:00:16.4]}
44... g2 {[%clk 0:00:24.8]} 45. Rd4 {[%clk 0:00:12.7]} 45... g1=Q+ {[%clk
0:00:22.1]} 46. Rd1 {[%clk 0:00:14.6]} 46... Qxd1+ {[%clk 0:00:23]} 47. Kxd1
{[%clk 0:00:15.4]} 47... f1=Q# {[%clk 0:00:24.7]} 0-1

[Event "*** Titled Tuesday Blitz"]
[Site "Chess.com"]
[Date "2019.02.05"]
[Round "5"]
[White "Naruto-K"]
[Black "ShadyH9"]
[Result "0-1"]
[WhiteElo "2354"]
[BlackElo "2320"]
[TimeControl "180+2"]
[EndTime "14:06:49 PST"]
[Termination "ShadyH9 won by resignation"]

1. d4 {[%clk 0:02:59.9]} 1... Nf6 {[%clk 0:03:00.1]} 2. Bf4 {[%clk 0:03:00.3]}
2... b6 {[%clk 0:02:54.6]} 3. e3 {[%clk 0:03:01.2]} 3... Bb7 {[%clk 0:02:55.7]}
4. Nf3 {[%clk 0:03:02]} 4... g6 {[%clk 0:02:56.8]} 5. Be2 {[%clk 0:03:02.7]}
5... Bg7 {[%clk 0:02:57.9]} 6. O-O {[%clk 0:03:04.2]} 6... d6 {[%clk 0:02:59.1]}
7. h3 {[%clk 0:03:05.4]} 7... Nbd7 {[%clk 0:02:58.1]} 8. Bh2 {[%clk 0:03:05.2]}
8... O-O {[%clk 0:02:58.5]} 9. a4 {[%clk 0:03:06.6]} 9... a5 {[%clk 0:02:58.8]}
10. Nc3 {[%clk 0:03:06.9]} 10... e6 {[%clk 0:02:51.5]} 11. Qd3 {[%clk
0:03:06.7]} 11... Qe7 {[%clk 0:02:47]} 12. e4 {[%clk 0:03:03.3]} 12... e5 {[%clk
0:02:48]} 13. dxe5 {[%clk 0:02:55.2]} 13... dxe5 {[%clk 0:02:40.3]} 14. Rfe1
{[%clk 0:02:41.8]} 14... Nc5 {[%clk 0:02:36.9]} 15. Qe3 {[%clk 0:01:37.9]} 15...
Nfxe4 {[%clk 0:02:34.6]} 16. Nxe4 {[%clk 0:01:36.5]} 16... Bxe4 {[%clk
0:02:34.9]} 17. Bd3 {[%clk 0:01:06.8]} 17... Nxd3 {[%clk 0:02:26.8]} 18. cxd3
{[%clk 0:01:06.7]} 18... Bxf3 {[%clk 0:02:27.5]} 19. Qxf3 {[%clk 0:01:07.3]}
19... Rad8 {[%clk 0:02:25.6]} 20. Rac1 {[%clk 0:00:57.2]} 20... c5 {[%clk
0:02:21.2]} 21. Re4 {[%clk 0:00:50.4]} 21... Rd4 {[%clk 0:02:03.7]} 22. Rce1
{[%clk 0:00:33.2]} 22... Qd7 {[%clk 0:02:04.6]} 23. Bxe5 {[%clk 0:00:21.5]}
23... Bxe5 {[%clk 0:01:51.3]} 24. Rxe5 {[%clk 0:00:21.9]} 24... Rxd3 {[%clk
0:01:51.2]} 25. Qf6 {[%clk 0:00:20.2]} 25... Rd6 {[%clk 0:01:36.3]} 26. Qf3
{[%clk 0:00:17.4]} 26... Qxa4 {[%clk 0:01:36]} 27. Qb7 {[%clk 0:00:09.7]} 27...
Qc6 {[%clk 0:01:35.9]} 28. Qa7 {[%clk 0:00:09.3]} 28... Rd7 {[%clk 0:01:20]} 29.
Qa6 {[%clk 0:00:08.4]} 29... Rd2 {[%clk 0:01:13.2]} 30. Qa7 {[%clk 0:00:04.9]}
30... Rxb2 {[%clk 0:01:09.5]} 31. Re7 {[%clk 0:00:03.7]} 31... Qf6 {[%clk
0:01:08.1]} 32. f3 {[%clk 0:00:04.3]} 32... Qd4+ {[%clk 0:00:56.7]} 33. Kh1
{[%clk 0:00:04.5]} 33... Qf2 {[%clk 0:00:57]} 34. Rg1 {[%clk 0:00:05.9]} 34...
c4 {[%clk 0:00:53.2]} 35. Qc7 {[%clk 0:00:04.9]} 35... b5 {[%clk 0:00:50]} 36.
Qf4 {[%clk 0:00:06.4]} 36... c3 {[%clk 0:00:44.5]} 37. h4 {[%clk 0:00:07.6]}
37... c2 {[%clk 0:00:36.5]} 38. h5 {[%clk 0:00:07.9]} 38... Rb1 {[%clk
0:00:35.2]} 39. Rc1 {[%clk 0:00:05]} 39... Rxc1+ {[%clk 0:00:26.3]} 40. Qxc1
{[%clk 0:00:06.9]} 40... b4 {[%clk 0:00:22.6]} 41. h6 {[%clk 0:00:07.3]} 41...
Qh4+ {[%clk 0:00:20.9]} 42. Kg1 {[%clk 0:00:08.6]} 42... Qxe7 {[%clk 0:00:21.3]}
0-1

[Event "*** Titled Tuesday Blitz"]
[Site "Chess.com"]
[Date "2019.02.05"]
[Round "5"]
[White "NMJeevanK"]
[Black "Kostya_Nikologorskiy"]
[Result "1-0"]
[WhiteElo "2335"]
[BlackElo "2410"]
[TimeControl "180+2"]
[EndTime "14:06:50 PST"]
[Termination "NMJeevanK won by resignation"]

1. e4 {[%clk 0:03:01.9]} 1... c6 {[%clk 0:02:55]} 2. d4 {[%clk 0:03:02.7]} 2...
d5 {[%clk 0:02:56.9]} 3. Nc3 {[%clk 0:03:04.3]} 3... dxe4 {[%clk 0:02:57.3]} 4.
Nxe4 {[%clk 0:03:06.2]} 4... Bf5 {[%clk 0:02:59]} 5. Ng3 {[%clk 0:03:07.8]} 5...
Bg6 {[%clk 0:03:00]} 6. Nf3 {[%clk 0:03:08.5]} 6... Nd7 {[%clk 0:02:59.7]} 7. h4
{[%clk 0:03:09.7]} 7... h6 {[%clk 0:03:00.8]} 8. h5 {[%clk 0:03:11.2]} 8... Bh7
{[%clk 0:03:02.1]} 9. Bd3 {[%clk 0:03:12.8]} 9... Bxd3 {[%clk 0:03:02.7]} 10.
Qxd3 {[%clk 0:03:14.7]} 10... Qc7 {[%clk 0:03:02.6]} 11. Bd2 {[%clk 0:03:15.8]}
11... Ngf6 {[%clk 0:03:02.2]} 12. O-O-O {[%clk 0:03:16.7]} 12... e6 {[%clk
0:03:02.7]} 13. Kb1 {[%clk 0:03:17.7]} 13... Bd6 {[%clk 0:02:58.3]} 14. Ne4
{[%clk 0:03:17.3]} 14... Nxe4 {[%clk 0:02:56.2]} 15. Qxe4 {[%clk 0:03:19.2]}
15... Nf6 {[%clk 0:02:58.1]} 16. Qe2 {[%clk 0:03:20.3]} 16... O-O-O {[%clk
0:02:50]} 17. Ne5 {[%clk 0:03:16.5]} 17... Bxe5 {[%clk 0:02:48.2]} 18. dxe5
{[%clk 0:03:17.2]} 18... Nd5 {[%clk 0:02:46.2]} 19. f4 {[%clk 0:03:13.5]} 19...
Qb6 {[%clk 0:02:38.7]} 20. Rh3 {[%clk 0:03:08.5]} 20... Rd7 {[%clk 0:02:32.6]}
21. Rb3 {[%clk 0:03:06.8]} 21... Qd4 {[%clk 0:02:28.3]} 22. Rd3 {[%clk
0:02:45.2]} 22... Qc4 {[%clk 0:02:28.8]} 23. b3 {[%clk 0:02:39.9]} 23... Qa6
{[%clk 0:02:21.1]} 24. c4 {[%clk 0:02:40]} 24... Rhd8 {[%clk 0:02:06.3]} 25.
cxd5 {[%clk 0:01:31.5]} 25... Rxd5 {[%clk 0:02:03.7]} 26. Re3 {[%clk 0:01:29.3]}
26... Qb6 {[%clk 0:01:44.2]} 27. Rc3 {[%clk 0:01:27.9]} 27... a5 {[%clk
0:01:38.1]} 28. Rc2 {[%clk 0:01:24.3]} 28... a4 {[%clk 0:01:38.8]} 29. b4 {[%clk
0:01:19.8]} 29... a3 {[%clk 0:01:34.3]} 30. Qc4 {[%clk 0:01:11.6]} 30... Qf2
{[%clk 0:01:07.5]} 31. Kc1 {[%clk 0:00:45.6]} 31... Qxg2 {[%clk 0:01:02.9]} 32.
b5 {[%clk 0:00:45.3]} 32... c5 {[%clk 0:01:03.6]} 33. b6 {[%clk 0:00:41.2]}
33... f6 {[%clk 0:00:48.4]} 34. Qa4 {[%clk 0:00:38.9]} 34... fxe5 {[%clk
0:00:40.8]} 35. Qa8+ {[%clk 0:00:31.2]} 35... Kd7 {[%clk 0:00:41.5]} 36. Qxb7+
{[%clk 0:00:32.9]} 36... Ke8 {[%clk 0:00:43.2]} 37. Qc6+ {[%clk 0:00:25.8]}
37... Kf7 {[%clk 0:00:37.2]} 38. b7 {[%clk 0:00:22.7]} 38... Rxd2 {[%clk
0:00:27.9]} 39. Qc7+ {[%clk 0:00:21.5]} 39... R8d7 {[%clk 0:00:13.4]} 40. Qxd7+
{[%clk 0:00:21.5]} 40... Rxd7 {[%clk 0:00:15.3]} 41. Rxd7+ {[%clk 0:00:22.3]}
41... Kf6 {[%clk 0:00:16.3]} 42. Rxg2 {[%clk 0:00:22.9]} 1-0

[Event "*** Titled Tuesday Blitz"]
[Site "Chess.com"]
[Date "2019.02.05"]
[Round "5"]
[White "DanielMieles1985"]
[Black "Angry_Serb"]
[Result "1/2-1/2"]
[WhiteElo "2614"]
[BlackElo "2544"]
[TimeControl "180+2"]
[EndTime "14:06:52 PST"]
[Termination "Game drawn by agreement"]

1. d4 {[%clk 0:03:01.9]} 1... Nf6 {[%clk 0:02:57.8]} 2. c4 {[%clk 0:03:03.2]}
2... g6 {[%clk 0:02:58.5]} 3. Nc3 {[%clk 0:03:03.7]} 3... d5 {[%clk 0:02:59.7]}
4. Nf3 {[%clk 0:03:03.9]} 4... Bg7 {[%clk 0:03:00.7]} 5. Qb3 {[%clk 0:03:05.1]}
5... dxc4 {[%clk 0:02:58.8]} 6. Qxc4 {[%clk 0:03:06.5]} 6... O-O {[%clk
0:03:00.6]} 7. e4 {[%clk 0:03:07]} 7... Be6 {[%clk 0:02:48.6]} 8. Qd3 {[%clk
0:03:07.1]} 8... c5 {[%clk 0:02:46.2]} 9. d5 {[%clk 0:03:07.8]} 9... Bg4 {[%clk
0:02:47.1]} 10. Be3 {[%clk 0:03:04.9]} 10... Nbd7 {[%clk 0:02:36.7]} 11. Qd2
{[%clk 0:03:02.7]} 11... Bxf3 {[%clk 0:02:00.3]} 12. gxf3 {[%clk 0:03:03.2]}
12... Ne5 {[%clk 0:02:02.2]} 13. Be2 {[%clk 0:02:59.7]} 13... c4 {[%clk
0:01:57.3]} 14. O-O {[%clk 0:02:51.4]} 14... Qc8 {[%clk 0:01:46.8]} 15. Kg2
{[%clk 0:02:52]} 15... Nh5 {[%clk 0:01:38.1]} 16. h3 {[%clk 0:02:37.6]} 16... f5
{[%clk 0:01:13.5]} 17. f4 {[%clk 0:02:38.4]} 17... Nd3 {[%clk 0:01:15.1]} 18.
Bxd3 {[%clk 0:02:35.3]} 18... cxd3 {[%clk 0:01:17]} 19. Qxd3 {[%clk 0:02:36.7]}
19... Bxc3 {[%clk 0:00:44.6]} 20. bxc3 {[%clk 0:02:32.4]} 20... fxe4 {[%clk
0:00:45.7]} 21. Qxe4 {[%clk 0:02:32.1]} 21... Qxc3 {[%clk 0:00:44.4]} 22. Qe6+
{[%clk 0:01:59.3]} 22... Rf7 {[%clk 0:00:36.9]} 23. Rac1 {[%clk 0:01:57.5]}
23... Qf6 {[%clk 0:00:34.5]} 24. Rc7 {[%clk 0:01:47.8]} 24... Qxf4 {[%clk
0:00:15]} 25. Bxf4 {[%clk 0:01:28.9]} 25... Nxf4+ {[%clk 0:00:16.9]} 26. Kg3
{[%clk 0:01:30.4]} 26... Nxe6 {[%clk 0:00:18.5]} 27. dxe6 {[%clk 0:01:32.1]}
27... Rf6 {[%clk 0:00:16.7]} 28. Rxe7 {[%clk 0:01:33]} 28... Raf8 {[%clk
0:00:18.3]} 29. f4 {[%clk 0:01:21.3]} 29... b5 {[%clk 0:00:15.3]} 30. h4 {[%clk
0:01:16.2]} 30... a5 {[%clk 0:00:13.4]} 31. Kg4 {[%clk 0:01:01.6]} 31... b4
{[%clk 0:00:12.6]} 32. h5 {[%clk 0:01:01.5]} 32... gxh5+ {[%clk 0:00:13.7]} 33.
Kxh5 {[%clk 0:00:59.4]} 33... Rxf4 {[%clk 0:00:13.9]} 34. Rxf4 {[%clk
0:00:50.6]} 34... Rxf4 {[%clk 0:00:15.8]} 35. Kh6 {[%clk 0:00:44.5]} 35... Kf8
{[%clk 0:00:13.6]} 36. Ra7 {[%clk 0:00:29.4]} 36... Rf6+ {[%clk 0:00:04.3]} 37.
Kxh7 {[%clk 0:00:29.5]} 37... Rxe6 {[%clk 0:00:04.6]} 38. Rxa5 {[%clk
0:00:30.1]} 38... Ke7 {[%clk 0:00:04.7]} 39. a3 {[%clk 0:00:22.1]} 39... bxa3
{[%clk 0:00:03.3]} 40. Rxa3 {[%clk 0:00:22.4]} 40... Re1 {[%clk 0:00:04.3]} 41.
Ra7+ {[%clk 0:00:22]} 41... Kd6 {[%clk 0:00:05.2]} 42. Ra8 {[%clk 0:00:23.1]}
42... Rh1+ {[%clk 0:00:05.7]} 43. Kg6 {[%clk 0:00:23.7]} 43... Rg1+ {[%clk
0:00:07.6]} 1/2-1/2

[Event "*** Titled Tuesday Blitz"]
[Site "Chess.com"]
[Date "2019.02.05"]
[Round "5"]
[White "justantan"]
[Black "josmito10"]
[Result "1-0"]
[WhiteElo "2716"]
[BlackElo "2735"]
[TimeControl "180+2"]
[EndTime "14:06:55 PST"]
[Termination "justantan won on time"]

1. e4 {[%clk 0:03:00.2]} 1... c5 {[%clk 0:03:00.5]} 2. Nf3 {[%clk 0:02:59.5]}
2... Nc6 {[%clk 0:03:02]} 3. Bb5 {[%clk 0:02:59.7]} 3... d6 {[%clk 0:03:03.9]}
4. O-O {[%clk 0:02:59.4]} 4... Bd7 {[%clk 0:03:05.7]} 5. Re1 {[%clk 0:02:59.9]}
5... Nf6 {[%clk 0:03:07.2]} 6. c3 {[%clk 0:03:00.7]} 6... a6 {[%clk 0:03:08.6]}
7. Bc4 {[%clk 0:03:02.3]} 7... b5 {[%clk 0:03:09.5]} 8. Bf1 {[%clk 0:03:02.5]}
8... Bg4 {[%clk 0:03:10.9]} 9. a4 {[%clk 0:03:02.9]} 9... b4 {[%clk 0:03:09.8]}
10. d4 {[%clk 0:03:03.8]} 10... cxd4 {[%clk 0:03:02.5]} 11. cxd4 {[%clk
0:03:04]} 11... e5 {[%clk 0:03:03.8]} 12. dxe5 {[%clk 0:02:48.2]} 12... dxe5
{[%clk 0:02:41.3]} 13. Qb3 {[%clk 0:02:28.9]} 13... Bc5 {[%clk 0:02:22.4]} 14.
Bg5 {[%clk 0:02:27.9]} 14... Qb6 {[%clk 0:02:11.2]} 15. Bh4 {[%clk 0:02:17.5]}
15... O-O {[%clk 0:02:07.1]} 16. Nbd2 {[%clk 0:02:03.4]} 16... Be6 {[%clk
0:02:02.2]} 17. Nc4 {[%clk 0:01:46.6]} 17... Qa7 {[%clk 0:01:55.7]} 18. Qc2
{[%clk 0:01:37.5]} 18... Nd7 {[%clk 0:01:52.9]} 19. Rad1 {[%clk 0:01:36]} 19...
Rac8 {[%clk 0:01:44.9]} 20. Nd6 {[%clk 0:01:23.9]} 20... Bxd6 {[%clk 0:01:20.2]}
21. Rxd6 {[%clk 0:01:24.4]} 21... Nd4 {[%clk 0:01:21.7]} 22. Qd1 {[%clk
0:01:25.1]} 22... Bb3 {[%clk 0:00:53.7]} 23. Qd3 {[%clk 0:01:25.3]} 23... Nc5
{[%clk 0:00:48.6]} 24. Qd2 {[%clk 0:01:17.2]} 24... Qc7 {[%clk 0:00:31.4]} 25.
Nxd4 {[%clk 0:01:18.2]} 25... exd4 {[%clk 0:00:21]} 26. Rxd4 {[%clk 0:01:16.8]}
26... a5 {[%clk 0:00:20.7]} 27. Bg3 {[%clk 0:01:04.9]} 27... Qb7 {[%clk
0:00:16.3]} 28. Bd6 {[%clk 0:01:00.5]} 28... Rfe8 {[%clk 0:00:17.2]} 29. Bb5
{[%clk 0:00:58.8]} 29... Rxe4 {[%clk 0:00:15]} 30. Bxc5 {[%clk 0:00:59.8]} 30...
Rxe1+ {[%clk 0:00:07]} 31. Qxe1 {[%clk 0:01:00.6]} 31... Be6 {[%clk 0:00:04.1]}
32. Bd6 {[%clk 0:00:56.6]} 32... Qb6 {[%clk 0:00:02.5]} 33. Rd1 {[%clk
0:00:52.6]} 33... Bb3 {[%clk 0:00:02.2]} 34. Rd2 {[%clk 0:00:49.8]} 34... Be6
{[%clk 0:00:02.5]} 35. h3 {[%clk 0:00:45.6]} 35... h6 {[%clk 0:00:03.9]} 36. Be5
{[%clk 0:00:42.7]} 36... b3 {[%clk 0:00:05.2]} 37. Bc3 {[%clk 0:00:43.1]} 37...
Qc5 {[%clk 0:00:05.8]} 38. Rd3 {[%clk 0:00:42.4]} 38... Qh5 {[%clk 0:00:03.3]}
39. Rg3 {[%clk 0:00:42.8]} 39... g5 {[%clk 0:00:02.9]} 40. Qe5 {[%clk 0:00:43]}
40... Qd1+ {[%clk 0:00:04.1]} 41. Kh2 {[%clk 0:00:43.7]} 41... Rxc3 {[%clk
0:00:02.8]} 42. Qxc3 {[%clk 0:00:44.2]} 42... Qd5 {[%clk 0:00:02.4]} 43. Qf6
{[%clk 0:00:43]} 1-0

[Event "*** Titled Tuesday Blitz"]
[Site "Chess.com"]
[Date "2019.02.05"]
[Round "5"]
[White "CalinGheorghiu"]
[Black "HrvojeZagreb"]
[Result "1-0"]
[WhiteElo "2248"]
[BlackElo "2111"]
[TimeControl "180+2"]
[EndTime "14:06:55 PST"]
[Termination "CalinGheorghiu won by checkmate"]

1. d4 {[%clk 0:03:00.1]} 1... e6 {[%clk 0:02:59.4]} 2. c4 {[%clk 0:02:59.3]}
2... f5 {[%clk 0:03:00.3]} 3. g3 {[%clk 0:02:59]} 3... Nf6 {[%clk 0:03:01.4]} 4.
Bg2 {[%clk 0:03:00.1]} 4... d5 {[%clk 0:03:02.7]} 5. Nf3 {[%clk 0:02:59.7]} 5...
c6 {[%clk 0:03:04.1]} 6. O-O {[%clk 0:03:00.7]} 6... Bd6 {[%clk 0:03:05.6]} 7.
Nc3 {[%clk 0:03:01.1]} 7... O-O {[%clk 0:03:07.2]} 8. Bf4 {[%clk 0:02:58.9]}
8... Bxf4 {[%clk 0:03:06.1]} 9. gxf4 {[%clk 0:02:59.8]} 9... b6 {[%clk
0:03:04.9]} 10. Ne5 {[%clk 0:02:56]} 10... Bb7 {[%clk 0:03:05.6]} 11. e3 {[%clk
0:02:53.4]} 11... Nbd7 {[%clk 0:03:06.6]} 12. b4 {[%clk 0:02:47.5]} 12... Ne4
{[%clk 0:03:01.1]} 13. Qc2 {[%clk 0:02:40.3]} 13... Nxe5 {[%clk 0:02:59.3]} 14.
fxe5 {[%clk 0:02:38.6]} 14... Nxc3 {[%clk 0:03:00.2]} 15. Qxc3 {[%clk
0:02:39.5]} 15... b5 {[%clk 0:02:56.3]} 16. cxb5 {[%clk 0:02:36.7]} 16... cxb5
{[%clk 0:02:58.2]} 17. f4 {[%clk 0:02:21.2]} 17... Rc8 {[%clk 0:02:55.5]} 18.
Qb2 {[%clk 0:02:21.1]} 18... Rc4 {[%clk 0:02:55.4]} 19. Rfc1 {[%clk 0:02:18.8]}
19... Qh4 {[%clk 0:02:55.2]} 20. a4 {[%clk 0:02:15]} 20... a6 {[%clk 0:02:41.1]}
21. axb5 {[%clk 0:02:14.9]} 21... axb5 {[%clk 0:02:42.2]} 22. Ra7 {[%clk
0:02:14.9]} 22... Bc6 {[%clk 0:02:32.6]} 23. Rxc4 {[%clk 0:02:06.6]} 23... Qe1+
{[%clk 0:02:32.5]} 24. Bf1 {[%clk 0:02:06]} 24... dxc4 {[%clk 0:02:33.5]} 25.
Qf2 {[%clk 0:02:03.9]} 25... Qxb4 {[%clk 0:02:26.5]} 26. Qh4 {[%clk 0:02:02.8]}
26... h6 {[%clk 0:02:02.6]} 27. Rc7 {[%clk 0:00:30.1]} 27... Bd5 {[%clk
0:01:56.4]} 28. Kf2 {[%clk 0:00:30.1]} 28... Rf7 {[%clk 0:01:30.2]} 29. Qd8+
{[%clk 0:00:25.9]} 29... Kh7 {[%clk 0:01:30.8]} 30. Rxf7 {[%clk 0:00:25.3]}
30... Qd2+ {[%clk 0:01:31.4]} 31. Be2 {[%clk 0:00:24.8]} 31... Bf3 {[%clk
0:01:01.1]} 32. Kxf3 {[%clk 0:00:23.4]} 32... Qe1 {[%clk 0:01:02]} 33. Qf6
{[%clk 0:00:14.6]} 33... Qh1+ {[%clk 0:00:59.8]} 34. Kf2 {[%clk 0:00:14.2]}
34... Qxh2+ {[%clk 0:00:58.5]} 35. Ke1 {[%clk 0:00:15.5]} 35... Qg3+ {[%clk
0:00:58.7]} 36. Kd2 {[%clk 0:00:16]} 36... c3+ {[%clk 0:00:59.8]} 37. Kd3 {[%clk
0:00:15.3]} 37... b4 {[%clk 0:00:58.9]} 38. Qxe6 {[%clk 0:00:12.1]} 38... Qh3
{[%clk 0:00:34.1]} 39. Qd7 {[%clk 0:00:10.9]} 39... Qh5 {[%clk 0:00:12.1]} 40.
Rxg7+ {[%clk 0:00:11.2]} 40... Kh8 {[%clk 0:00:12.9]} 41. Rh7+ {[%clk
0:00:12.7]} 41... Kg8 {[%clk 0:00:14.3]} 42. Qg7# {[%clk 0:00:14.6]} 1-0

[Event "*** Titled Tuesday Blitz"]
[Site "Chess.com"]
[Date "2019.02.05"]
[Round "5"]
[White "Romn69"]
[Black "akhairat"]
[Result "1-0"]
[WhiteElo "2265"]
[BlackElo "2225"]
[TimeControl "180+2"]
[EndTime "14:07:08 PST"]
[Termination "Romn69 won on time"]

1. d4 {[%clk 0:03:01.9]} 1... g6 {[%clk 0:02:58.9]} 2. c4 {[%clk 0:03:02.1]}
2... Bg7 {[%clk 0:03:00.1]} 3. e4 {[%clk 0:03:03]} 3... d6 {[%clk 0:02:55.6]} 4.
Nc3 {[%clk 0:03:03.6]} 4... e6 {[%clk 0:02:55.4]} 5. Be3 {[%clk 0:02:55.7]} 5...
Ne7 {[%clk 0:02:55.1]} 6. Be2 {[%clk 0:02:54.8]} 6... Nd7 {[%clk 0:02:52.6]} 7.
f3 {[%clk 0:02:51.1]} 7... a6 {[%clk 0:02:42.9]} 8. Qd2 {[%clk 0:02:50.1]} 8...
h6 {[%clk 0:02:43.4]} 9. h4 {[%clk 0:02:46.7]} 9... e5 {[%clk 0:02:13]} 10. d5
{[%clk 0:02:44.9]} 10... a5 {[%clk 0:02:12.8]} 11. Nh3 {[%clk 0:02:38.7]} 11...
b6 {[%clk 0:02:10.6]} 12. Nf2 {[%clk 0:02:38.5]} 12... Nc5 {[%clk 0:02:11.6]}
13. g4 {[%clk 0:02:29.6]} 13... Bd7 {[%clk 0:01:56.8]} 14. h5 {[%clk 0:02:14.4]}
14... g5 {[%clk 0:01:56.6]} 15. O-O-O {[%clk 0:02:13.8]} 15... f6 {[%clk
0:01:52]} 16. Kb1 {[%clk 0:02:13.6]} 16... a4 {[%clk 0:01:51.6]} 17. Nd3 {[%clk
0:02:13.3]} 17... O-O {[%clk 0:01:43.5]} 18. Qc2 {[%clk 0:01:50.7]} 18... Qe8
{[%clk 0:01:43.5]} 19. b4 {[%clk 0:01:33.4]} 19... axb3 {[%clk 0:01:42.1]} 20.
axb3 {[%clk 0:01:33.2]} 20... Ra3 {[%clk 0:01:05.5]} 21. Nxc5 {[%clk 0:01:32.8]}
21... bxc5 {[%clk 0:01:05.5]} 22. Kb2 {[%clk 0:01:31.3]} 22... Ra7 {[%clk
0:00:59.3]} 23. Ra1 {[%clk 0:01:30.5]} 23... Qb8 {[%clk 0:01:00.8]} 24. Rxa7
{[%clk 0:01:28]} 24... Qxa7 {[%clk 0:01:02.7]} 25. Ra1 {[%clk 0:01:28.1]} 25...
Qb7 {[%clk 0:01:03.7]} 26. Qb1 {[%clk 0:01:20.4]} 26... Rb8 {[%clk 0:00:59.5]}
27. Ra3 {[%clk 0:01:20.2]} 27... Nc8 {[%clk 0:00:57.6]} 28. Qa2 {[%clk
0:01:19.6]} 28... Nb6 {[%clk 0:00:57.6]} 29. Ra7 {[%clk 0:01:03.4]} 29... Qc8
{[%clk 0:00:58.4]} 30. Kc2 {[%clk 0:01:03.4]} 30... Ra8 {[%clk 0:00:56.8]} 31.
Rxa8 {[%clk 0:01:02.7]} 31... Qxa8 {[%clk 0:00:58.7]} 32. Qxa8+ {[%clk
0:01:01.9]} 32... Nxa8 {[%clk 0:01:00.6]} 33. Kb2 {[%clk 0:01:01.6]} 33... Kf8
{[%clk 0:00:58.2]} 34. Ka3 {[%clk 0:01:02.1]} 34... Ke8 {[%clk 0:00:57.7]} 35.
b4 {[%clk 0:01:02.9]} 35... cxb4+ {[%clk 0:00:51.6]} 36. Kxb4 {[%clk 0:01:03.6]}
36... Kd8 {[%clk 0:00:47.9]} 37. c5 {[%clk 0:00:57]} 37... Bf8 {[%clk
0:00:25.8]} 38. c6 {[%clk 0:00:57.3]} 38... Bc8 {[%clk 0:00:20.5]} 39. Bc4
{[%clk 0:00:53.1]} 39... Be7 {[%clk 0:00:17.1]} 40. Nb5 {[%clk 0:00:52.2]} 40...
Ba6 {[%clk 0:00:17.7]} 41. Ka5 {[%clk 0:00:38.6]} 41... Bc8 {[%clk 0:00:17.7]}
42. Na7 {[%clk 0:00:35.9]} 42... Bf8 {[%clk 0:00:14.6]} 43. Ba6 {[%clk
0:00:31.8]} 43... Bxa6 {[%clk 0:00:05.2]} 44. Kxa6 {[%clk 0:00:32.6]} 44... Be7
{[%clk 0:00:05.4]} 45. Kb7 {[%clk 0:00:32.8]} 1-0